bitfinex/quotes_ETHUSD_20240822
["timestamp","ask_amount","ask_price","bid_price","bid_amount"]
[1724338104716,3.8362,2606.8,2606.2,3.83697]
[1724338104927,3.8362,2606.8,2606.3,7.67359]
[1724338105136,3.8362,2606.8,2606.3,3.83677]
[1724338105430,3.8362,2606.8,2606.3,7.67353]
[1724338105633,3.8362,2606.8,2606.1,3.83708]
[1724338105832,3.83641,2606.7,2606.1,3.83708]
[1724338106047,3.83642,2606.6,2606.1,3.83708]
[1724338106334,3.83642,2606.6,2605.6,2.3596]
[1724338106335,3.83673,2606.4,2605.6,2.3596]
[1724338106482,3.83657,2606.5,2605.9,3.83736]
[1724338106682,3.83657,2606.5,2605.9,7.67472]
[1724338106994,3.83657,2606.5,2605.6,2.3596]
[1724338106995,3.83686,2606.3,2605.8,3.83755]
[1724338107193,3.83686,2606.3,2605.6,2.3596]
[1724338107194,3.83686,2606.3,2605.6,3.83779]
[1724338107396,2.4891,2606.5,2605.5,3.83794]
[1724338107397,3.83731,2606.0,2605.5,3.83794]
[1724338107589,3.83683,2606.4,2605.8,3.83749]
[1724338107788,3.8368,2606.4,2605.8,3.83749]
[1724338107991,7.39,2606.5,2606.0,3.83727]
[1724338108175,7.39,2606.5,2606.0,3.8372]
[1724338108935,7.39,2606.5,2606.2,3.83692]
[1724338109139,10.04186,2606.8,2606.2,3.83692]
[1724338109288,3.83644,2606.6,2606.0,7.67437]
[1724338109630,7.67293,2606.6,2606.0,3.83716]
[1724338109849,3.83644,2606.6,2606.0,3.83716]
[1724338110058,3.83644,2606.6,2606.0,7.67437]
[1724338110191,3.83644,2606.6,2606.1,3.83708]
[1724338111046,3.83633,2606.7,2606.2,3.83699]
[1724338111231,3.83643,2606.6,2606.0,3.83716]
[1724338111441,3.83658,2606.5,2605.8,3.83749]
[1724338111596,3.83658,2606.5,2606.0,3.83721]
[1724338112004,3.83628,2606.7,2606.0,3.83721]
[1724338112240,3.83628,2606.7,2606.2,3.83699]
[1724338112394,3.83628,2606.7,2606.0,7.6744]
[1724338112595,3.83657,2606.5,2606.0,3.83718]
[1724338112799,3.83657,2606.5,2605.8,3.83751]
[1724338112800,3.83679,2606.4,2605.8,3.83751]
[1724338113053,3.83679,2606.4,2605.9,3.83744]
[1724338113600,3.837,2606.3,2605.6,3.83777]
[1724338113756,3.83715,2606.1,2605.6,3.83777]
[1724338113970,3.83699,2606.3,2605.6,3.83777]
[1724338114129,3.83699,2606.3,2605.8,3.8375]
[1724338114313,3.83664,2606.5,2605.8,3.8375]
[1724338114314,3.83657,2606.5,2605.8,3.8375]
[1724338114509,7.39,2606.6,2605.7,3.83773]
[1724338114510,3.83703,2606.2,2605.7,3.83773]
[1724338114715,3.83717,2606.1,2605.6,3.83778]
[1724338114951,6.20077,2606.3,2605.6,3.83778]
[1724338115118,3.83673,2606.4,2605.9,3.83736]
[1724338115456,3.83673,2606.4,2605.6,0.383778]
[1724338115457,3.83679,2606.4,2605.8,3.83747]
[1724338115665,3.83679,2606.4,2605.8,7.67494]
[1724338115866,3.83679,2606.4,2605.8,7.67497]
[1724338116180,3.83666,2606.5,2606.0,3.8372]
[1724338116467,9.7539,2606.6,2605.8,3.83758]
[1724338116468,3.83694,2606.3,2605.8,3.83758]
[1724338116966,3.837,2606.2,2605.6,7.67549]
[1724338117366,3.837,2606.2,2605.7,3.83772]
[1724338118275,3.83694,2606.3,2605.8,3.83756]
[1724338118786,4.38683,2606.4,2605.9,3.83744]
[1724338118971,4.38682,2606.4,2605.9,3.83744]
[1724338119173,13.5904,2606.6,2606.0,3.83727]
[1724338119405,13.5904,2606.6,2606.1,3.83712]
[1724338119704,2.3639,2606.6,2606.2,3.837]
[1724338119907,3.83623,2606.8,2606.2,3.83691]
[1724338120051,3.83598,2606.9,2605.9,3.83742]
[1724338120253,13.53517,2607.0,2606.5,3.83655]
[1724338120254,6.14517,2607.0,2606.5,3.83655]
[1724338120452,3.83587,2607.0,2606.5,3.83655]
[1724338120709,3.83587,2607.0,2606.5,3.83649]
[1724338121204,3.83563,2607.2,2606.5,3.83649]
[1724338121367,3.83563,2607.2,2606.7,3.83626]
[1724338121569,3.83563,2607.2,2606.6,3.8364]
[1724338121947,3.83563,2607.2,2606.5,3.83649]
[1724338121948,3.83563,2607.2,2606.7,3.83624]
[1724338122411,11.22534,2607.4,2606.7,3.83624]
[1724338122412,11.22533,2607.4,2606.7,3.83624]
[1724338122622,3.83504,2607.6,2607.0,3.83573]
[1724338122833,3.83504,2607.6,2607.1,3.83565]
[1724338123108,2.3465,2607.7,2607.2,3.83553]
[1724338123252,6.18135,2607.7,2607.2,3.83553]
[1724338123451,2.3465,2607.7,2607.2,3.83545]
[1724338123675,11.22464,2607.9,2607.3,3.8353]
[1724338124106,7.39,2607.9,2607.4,3.83522]
[1724338124330,3.83476,2607.8,2607.2,3.83541]
[1724338124626,3.83488,2607.7,2607.1,3.83557]
[1724338125033,3.83476,2607.8,2607.2,3.83549]
[1724338125201,3.83476,2607.8,2607.3,3.83537]
[1724338125202,3.83472,2607.8,2607.3,3.83537]
[1724338125401,3.83472,2607.8,2607.2,3.83549]
[1724338125402,7.39,2607.9,2607.2,3.83549]
[1724338125705,3.83465,2607.8,2607.2,3.83543]
[1724338125939,7.66939,2607.8,2607.2,3.83543]
[1724338126147,7.66939,2607.8,2607.2,3.83542]
[1724338126652,3.83465,2607.8,2607.2,7.67087]
[1724338126857,7.39,2607.9,2607.2,7.67087]
[1724338126858,7.39,2607.9,2607.4,6.32183]
[1724338127076,3.83429,2608.1,2607.6,3.83492]
[1724338127345,3.83424,2608.1,2607.6,3.83492]
[1724338127655,7.66827,2608.2,2607.6,3.83484]
[1724338127859,3.83412,2608.2,2607.6,3.83484]
[1724338128402,3.83423,2608.1,2607.4,3.83515]
[1724338128606,3.83446,2608.0,2607.4,8.5140757]
[1724338128818,3.83458,2607.9,2607.4,0.8437657]
[1724338129121,3.8344,2608.0,2607.4,7.67034]
[1724338129328,3.8344,2608.0,2607.5,3.83501]
[1724338129552,7.39,2608.3,2607.4,3.83513]
[1724338129712,3.83439,2608.0,2607.4,7.67024]
[1724338129924,3.83434,2608.1,2607.6,3.8349]
[1724338130124,0.55,2608.2,2607.7,3.83479]
[1724338130321,4.38416,2608.2,2607.7,3.83479]
[1724338130535,3.83422,2608.1,2607.6,3.83494]
[1724338130930,4.38406,2608.2,2607.7,3.83477]
[1724338131349,0.55,2608.2,2607.7,7.66954]
[1724338131627,0.55,2608.2,2607.7,3.83469]
[1724338131864,0.55,2608.2,2607.5,3.83499]
[1724338131865,4.38417,2608.2,2607.5,7.66996]
[1724338132041,4.38417,2608.2,2607.5,3.83497]
[1724338132568,4.38417,2608.2,2607.7,3.83477]
[1724338132953,7.39,2608.3,2607.7,3.83472]
[1724338133154,7.39,2608.3,2607.9,7.66878]
[1724338133354,7.39,2608.3,2607.9,3.83438]
[1724338133555,9.94141,2608.5,2607.9,3.83438]
[1724338133556,9.9414,2608.5,2607.9,7.66878]
[1724338133869,2.274,2608.5,2608.1,3.8342]
[1724338134024,9.94137,2608.5,2607.9,7.66878]
[1724338134230,6.10763,2608.5,2607.9,7.66878]
[1724338134639,6.10763,2608.5,2607.9,3.83437]
[1724338134875,3.83391,2608.3,2607.9,3.83437]
[1724338135035,9.94133,2608.5,2607.9,3.83438]
[1724338135237,3.83387,2608.4,2607.9,3.83438]
[1724338135433,3.83392,2608.3,2607.7,4.218162]
[1724338135661,3.83414,2608.2,2607.7,3.83469]
[1724338136243,3.8348,2607.7,2606.9,2.297]
[1724338136398,3.8348,2607.7,2607.2,3.83551]
[1724338136751,3.8346,2607.9,2607.4,3.83522]
[1724338136952,3.8346,2607.9,2607.4,7.67044]
[1724338137178,3.8346,2607.9,2607.4,7.67036]
[1724338137385,2.3129,2608.0,2607.6,3.83487]
[1724338137692,3.83474,2607.8,2607.2,3.83546]
[1724338137863,3.8345,2607.9,2607.2,3.83546]
[1724338138255,3.8345,2607.9,2607.4,3.83523]
[1724338138456,3.8345,2607.9,2607.4,7.67039]
[1724338138645,6.14734,2608.0,2607.4,7.67039]
[1724338138851,4.38453,2607.9,2607.4,7.67031]
[1724338139055,4.38453,2607.9,2607.4,3.83515]
[1724338139793,0.55,2607.9,2607.5,3.83494]
[1724338140017,6.14726,2608.0,2606.9,2.297]
[1724338140018,2.3129,2608.0,2607.6,3.83481]
[1724338140294,3.83483,2607.7,2607.1,7.6711]
[1724338140514,3.83476,2607.8,2607.1,4.83234]
[1724338140672,3.83487,2607.7,2607.2,3.83551]
[1724338140854,3.83495,2607.6,2607.1,3.83553]
[1724338141199,3.83495,2607.6,2607.1,7.67112]
[1724338141403,2.2698,2607.7,2606.2,5.34310574]
[1724338141579,3.83585,2607.0,2606.5,3.83642]
[1724338141766,6.10541,2607.2,2606.6,3.83628]
[1724338141767,2.2698,2607.2,2606.6,3.83628]
[1724338142071,3.83539,2607.3,2606.8,3.836]
[1724338142257,0.55,2607.2,2606.8,3.836]
[1724338142456,3.8353,2607.4,2606.9,3.83597]
[1724338143060,9.6598,2607.5,2607.0,3.83581]
[1724338143264,0.55,2607.4,2607.0,3.83581]
[1724338143460,4.3853,2607.4,2606.8,3.83602]
[1724338144046,7.39,2607.5,2606.9,3.83593]
[1724338144217,11.22517,2607.5,2606.9,7.67179]
[1724338144419,11.22517,2607.5,2607.0,3.83582]
[1724338144810,7.39,2607.5,2607.1,3.83559]
[1724338145006,3.83504,2607.6,2607.1,3.83559]
[1724338145311,3.83546,2607.3,2606.8,0.4219648]
[1724338145618,6.13916,2607.3,2606.7,3.83616]
[1724338145818,4.38561,2607.2,2606.7,7.67235]
[1724338146057,4.38561,2607.2,2606.7,7.67233]
[1724338146354,4.38561,2607.2,2606.3,3.83676]
[1724338146355,3.8362,2606.8,2606.3,3.83676]
[1724338146912,3.83598,2606.9,2606.3,3.83676]
[1724338147110,7.67184,2607.0,2606.4,3.83668]
[1724338147349,4.38598,2606.9,2606.4,3.83668]
[1724338147860,4.38598,2606.9,2606.3,4.220436]
[1724338147861,8.22203,2606.9,2606.3,4.220436]
[1724338148169,3.83622,2606.8,2606.3,4.220436]
[1724338148371,3.83653,2606.6,2606.0,3.83727]
[1724338148533,6.70248,2606.7,2606.0,0.767462]
[1724338148534,3.83659,2606.5,2606.0,0.767462]
[1724338149121,3.83659,2606.5,2606.0,4.604722]
[1724338149730,6.15251,2606.7,2606.0,4.604722]
[1724338150025,3.83656,2606.5,2606.0,0.767462]
[1724338150362,3.8374,2606.0,2605.3,3.8382]
[1724338150597,3.83761,2605.8,2605.3,3.8382]
[1724338150725,3.83761,2605.8,2605.1,3.83849]
[1724338150726,6.27201,2605.8,2605.1,3.83849]
[1724338150923,5.301,2606.1,2604.9,2.3702]
[1724338150924,3.83734,2606.0,2605.3,3.83831]
[1724338151140,0.55,2605.9,2605.3,4.222141]
[1724338151469,4.38755,2605.9,2605.3,4.222141]
[1724338151779,0.55,2605.9,2605.3,8.060371]
[1724338151979,2.4344,2606.1,2605.5,3.8379]
[1724338152134,3.83738,2606.0,2605.3,4.222051]
[1724338152332,3.83738,2606.0,2605.3,7.67644]
[1724338152581,3.83738,2606.0,2605.4,3.83814]
[1724338153074,3.83738,2606.0,2605.5,3.83801]
[1724338153239,2.4344,2606.1,2605.6,3.83786]
[1724338153941,3.8373,2606.0,2605.5,3.83801]
[1724338154162,3.8373,2606.0,2605.3,7.67644]
[1724338154163,3.83748,2605.9,2605.3,7.67644]
[1724338154374,3.83762,2605.8,2605.0,3.83866]
[1724338154569,3.83762,2605.8,2605.2,3.83847]
[1724338154738,3.83762,2605.8,2605.1,0.620886]
[1724338154739,3.83738,2606.0,2605.4,3.83813]
[1724338154931,3.83738,2606.0,2605.4,3.83808]
[1724338155383,2.4344,2606.1,2605.4,3.83808]
[1724338155583,2.4344,2606.1,2605.6,3.83786]
[1724338155770,3.83707,2606.2,2605.4,3.83804]
[1724338156096,3.83707,2606.2,2605.6,3.83788]
[1724338156276,7.67417,2606.2,2605.6,3.83788]
[1724338156483,13.60216,2606.3,2605.6,3.8378]
[1724338156798,13.60216,2606.3,2605.7,3.83762]
[1724338156799,0.55,2606.2,2605.7,3.83762]
[1724338156947,13.60216,2606.3,2605.7,3.83762]
[1724338157142,13.60216,2606.3,2605.6,3.8378]
[1724338157143,9.7653,2606.3,2605.8,3.83747]
[1724338157351,11.22697,2606.3,2605.8,0.767527]
[1724338157588,3.83701,2606.2,2605.6,3.83777]
[1724338157881,3.83717,2606.1,2605.5,3.83793]
[1724338158084,7.67416,2606.2,2605.6,3.83786]
[1724338158297,11.22687,2606.3,2605.7,3.8377]
[1724338158498,11.22687,2606.3,2605.7,3.83766]
[1724338158997,7.39,2606.3,2605.8,3.83749]
[1724338159177,7.39,2606.3,2605.9,3.83742]
[1724338159492,2.4052,2606.5,2606.0,7.67441]
[1724338159687,11.366,2606.7,2606.0,3.8372]
[1724338159848,3.83646,2606.6,2606.0,3.8372]
[1724338160046,3.83646,2606.6,2606.0,7.67441]
[1724338160245,3.83646,2606.6,2606.0,3.83719]
[1724338160687,3.83665,2606.5,2606.0,3.83719]
[1724338160888,3.83694,2606.3,2605.8,3.83746]
[1724338161088,0.55,2606.4,2605.8,3.83746]
[1724338161089,4.38679,2606.4,2605.8,3.83746]
[1724338161302,8.22358,2606.4,2605.8,3.83746]
[1724338161492,4.38679,2606.4,2605.6,7.67557]
[1724338161651,3.837,2606.2,2605.7,3.83766]
[1724338162384,8.22358,2606.4,2605.8,3.83756]
[1724338162590,4.38679,2606.4,2605.8,8.54616874]
[1724338162799,4.38679,2606.4,2605.8,0.87114874]
[1724338162968,4.38679,2606.4,2605.5,3.83792]
[1724338162969,3.83724,2606.1,2605.5,3.83792]
[1724338163170,3.8373,2606.0,2605.5,3.83792]
[1724338163370,0.55,2606.0,2605.6,3.83785]
[1724338164397,0.55,2606.0,2605.4,3.83818]
[1724338164567,0.55,2606.0,2605.3,3.83823]
[1724338164769,3.8376,2605.8,2605.3,3.83823]
[1724338165163,0.55,2606.0,2605.1,3.8385]
[1724338165164,3.83757,2605.9,2605.1,3.8385]
[1724338165370,2.4045,2605.7,2604.8,0.1183503]
[1724338165613,4.526,2605.8,2604.8,0.1183503]
[1724338165614,3.976,2604.9,2604.8,0.1183503]
[1724338165795,3.976,2604.9,2603.6,14.6351]
[1724338165796,3.976,2604.9,2603.6,3.8408]
[1724338165797,2.4045,2604.8,2603.6,3.8408]
[1724338165994,2.4045,2604.8,2603.2,4.03083789]
[1724338165995,2.4045,2604.2,2603.2,4.03083789]
[1724338166363,2.4045,2604.2,2603.1,0.005]
[1724338166364,3.84024,2604.0,2603.1,0.005]
[1724338166506,3.976,2604.0,2603.2,3.84137]
[1724338166828,2.4045,2604.2,2603.3,3.84119]
[1724338166829,0.55,2603.9,2603.3,3.84119]
[1724338167042,2.4045,2604.2,2603.1,0.005]
[1724338167230,2.4045,2604.2,2603.2,0.52500834]
[1724338167370,3.0,2604.7,2603.6,3.84083]
[1724338167371,2.2711,2604.6,2603.6,3.84083]
[1724338167575,2.8211,2604.6,2603.9,3.84038]
[1724338167827,2.8211,2604.6,2603.6,3.84083]
[1724338167828,2.8211,2604.6,2603.7,3.84067]
[1724338168134,6.66051,2604.6,2603.6,3.84083]
[1724338168338,2.8211,2604.6,2603.7,3.84062]
[1724338168476,2.8211,2604.6,2603.9,3.84038]
[1724338168854,2.8211,2604.6,2603.6,3.84081]
[1724338168976,3.83955,2604.5,2603.6,3.84081]
[1724338169319,2.8211,2604.6,2603.1,5.312]
[1724338169320,2.2962,2603.9,2603.1,3.84655]
[1724338169534,2.2962,2603.9,2603.1,0.005]
[1724338169744,6.13588,2604.4,2603.5,3.84094]
[1724338170032,0.55,2604.3,2603.5,3.84094]
[1724338170207,0.55,2604.3,2603.3,3.84125]
[1724338170208,3.84003,2604.2,2603.3,3.84125]
[1724338170376,0.55,2604.1,2603.3,3.84125]
[1724338170750,0.55,2604.1,2603.3,4.27837583]
[1724338171042,2.2962,2604.4,2603.8,3.84052]
[1724338171173,2.2962,2604.4,2603.4,0.52500834]
[1724338171174,0.55,2604.3,2603.5,3.84095]
[1724338171374,0.55,2604.3,2603.6,3.84082]
[1724338171603,0.55,2604.3,2603.7,0.384082]
[1724338171809,0.55,2604.3,2603.3,0.83648629]
[1724338171810,0.55,2604.3,2603.6,3.8408]
[1724338172221,2.2962,2604.4,2603.3,3.32248629]
[1724338172525,7.39,2604.7,2603.9,3.84034]
[1724338172728,11.22923,2604.7,2603.9,3.84033]
[1724338172896,11.22923,2604.7,2604.0,3.84023]
[1724338173675,11.22923,2604.7,2603.6,5.307]
[1724338173676,3.83981,2604.3,2603.6,3.84078]
[1724338173918,3.83981,2604.3,2603.5,3.84094]
[1724338173919,0.55,2604.2,2603.5,3.84094]
[1724338174110,0.55,2604.2,2603.6,0.384094]
[1724338174507,0.55,2604.2,2603.6,4.224914]
[1724338174813,0.55,2604.4,2603.7,3.84064]
[1724338175122,4.3897,2604.4,2603.7,3.84068]
[1724338175514,0.55,2604.4,2604.0,3.84022]
[1724338175752,11.22924,2604.7,2604.0,3.84022]
[1724338175753,0.55,2604.6,2604.1,3.84009]
[1724338175947,0.55,2604.6,2604.0,0.384022]
[1724338176261,3.83982,2604.3,2603.6,0.384094]
[1724338176469,0.55,2604.2,2603.6,0.384094]
[1724338176811,0.55,2604.3,2603.7,3.84065]
[1724338177012,0.55,2604.3,2603.6,0.384094]
[1724338177013,2.3995,2604.2,2603.6,0.384094]
[1724338177256,6.23946,2604.2,2603.6,0.384094]
[1724338177411,6.23946,2604.2,2603.3,5.307]
[1724338177412,0.55,2604.1,2603.3,5.307]
[1724338177617,2.3995,2604.2,2603.3,5.83200834]
[1724338178034,2.3995,2604.2,2603.3,5.307]
[1724338178459,2.3995,2604.6,2603.4,4.36612834]
[1724338178624,6.23887,2604.6,2603.5,0.96731283]
[1724338179044,3.83977,2604.4,2603.5,0.96731283]
[1724338179247,6.23887,2604.6,2603.5,0.96731283]
[1724338179248,0.55,2604.5,2603.5,0.96731283]
[1724338179441,3.83977,2604.4,2603.5,0.96731283]
[1724338179797,2.3995,2604.6,2603.8,5.307]
[1724338180088,2.3995,2604.6,2603.9,0.5307]
[1724338180427,0.55,2604.5,2603.5,0.96731283]
[1724338180627,0.55,2604.5,2603.3,0.40054824]
[1724338180628,3.83978,2604.4,2603.3,3.0]
[1724338181183,0.55,2604.5,2603.4,3.84103]
[1724338181634,3.83967,2604.4,2603.3,6.84115]
[1724338181842,3.83967,2604.4,2603.4,0.919665]
[1724338182260,0.55,2604.5,2603.4,0.919665]
[1724338182424,3.84005,2604.2,2603.1,3.84644]
[1724338182628,0.55,2604.1,2603.3,3.84124]
[1724338182851,3.83966,2604.4,2603.3,3.84124]
[1724338182852,0.55,2604.2,2603.3,3.84124]
[1724338183047,0.55,2604.2,2603.4,0.384124]
[1724338183263,4.38995,2604.2,2603.4,0.384124]
[1724338184041,4.38995,2604.2,2603.4,4.225134]
[1724338184247,0.55,2604.2,2603.5,3.84094]
[1724338184555,3.84011,2604.1,2603.3,3.84117]
[1724338184738,3.0021,2604.0,2603.1,3.84643]
[1724338185088,3.0021,2604.0,2603.2,0.384643]
[1724338185290,3.0021,2604.0,2603.3,3.84114]
[1724338185638,3.0021,2604.0,2603.6,3.84081]
[1724338185871,2.4521,2604.0,2603.6,3.84081]
[1724338186167,2.4521,2604.0,2603.5,3.84088]
[1724338186725,2.4521,2604.0,2603.7,3.84056]
[1724338186960,7.39,2604.7,2603.5,0.384088]
[1724338186961,2.3321,2604.3,2603.5,0.384088]
[1724338187163,7.39,2604.7,2604.4,3.83963]
[1724338187164,2.3715,2604.7,2604.4,3.83963]
[1724338187335,2.3715,2604.7,2604.4,3.83955]
[1724338187536,2.77,2605.0,2604.6,3.83936]
[1724338187777,2.3715,2605.1,2604.9,3.83877]
[1724338187982,2.2975,2605.5,2604.7,3.83912]
[1724338188270,3.83828,2605.4,2604.7,7.67823]
[1724338188478,2.2975,2605.5,2604.4,3.8396]
[1724338188670,2.2975,2605.5,2604.7,3.83916]
[1724338188973,3.83839,2605.3,2604.7,3.83916]
[1724338189145,3.83832,2605.4,2604.7,3.83908]
[1724338189323,3.83832,2605.4,2604.8,3.83897]
[1724338189524,3.83832,2605.4,2604.9,3.8389]
[1724338189831,2.2975,2605.5,2604.9,3.8389]
[1724338190028,2.2975,2605.5,2604.9,3.83881]
[1724338190229,2.2975,2605.5,2605.0,3.83868]
[1724338190747,2.2975,2605.5,2604.9,3.8388]
[1724338191133,2.2975,2605.5,2604.9,7.67762]
[1724338191338,2.2975,2605.5,2604.9,3.8388]
[1724338191624,2.2975,2605.5,2604.3,5.690991]
[1724338191625,3.83896,2604.9,2604.3,3.83975]
[1724338191839,0.55,2604.8,2604.4,3.83952]
[1724338192141,0.55,2605.0,2604.4,3.83952]
[1724338192326,6.27034,2604.9,2604.3,3.83978]
[1724338192524,3.83947,2604.6,2604.0,3.84016]
[1724338192757,3.83924,2604.7,2604.1,3.83998]
[1724338193001,6.27035,2604.9,2604.1,3.83998]
[1724338193002,0.55,2604.6,2604.3,3.83976]
[1724338193159,2.4314,2604.9,2604.4,3.83951]
[1724338193360,0.55,2605.0,2604.1,3.254114]
[1724338193570,0.55,2605.1,2604.7,3.83917]
[1724338193987,0.55,2605.1,2604.7,3.83911]
[1724338194262,2.4138,2605.2,2604.9,3.83887]
[1724338194473,17.34993,2605.5,2604.9,3.83882]
[1724338194801,13.5118,2605.5,2604.9,3.83882]
[1724338195173,3.83826,2605.4,2604.9,3.83882]
[1724338195504,3.83826,2605.4,2604.7,3.83908]
[1724338195802,2.77,2605.8,2605.2,3.83838]
[1724338196004,2.77,2605.8,2605.4,3.83809]
[1724338196502,7.39,2606.1,2605.6,3.8378]
[1724338196916,7.39,2606.1,2605.7,3.83772]
[1724338197465,7.39,2606.1,2605.7,3.83765]
[1724338197778,7.39,2606.1,2605.8,3.83756]
[1724338198108,2.3735,2606.5,2606.0,3.83729]
[1724338198423,2.3735,2606.5,2606.0,7.67458]
[1724338198563,2.3735,2606.5,2606.0,3.83722]
[1724338199036,2.3735,2606.5,2605.8,3.83749]
[1724338199037,2.3735,2606.5,2605.8,3.83752]
[1724338199168,3.83708,2606.2,2605.6,3.83776]
[1724338199370,2.3735,2606.5,2605.6,3.83776]
[1724338199371,2.3735,2606.5,2605.6,7.6755]
[1724338199565,3.83697,2606.3,2605.7,3.83767]
[1724338199764,3.83672,2606.4,2605.8,3.83748]
[1724338200027,4.3869,2606.3,2605.8,3.83748]
[1724338200302,0.55,2606.3,2605.8,3.83748]
[1724338200474,0.55,2606.4,2605.8,3.83748]
[1724338200674,7.39,2606.7,2605.8,2.673548]
[1724338201005,6.32857,2606.9,2606.2,3.83686]
[1724338201212,6.32857,2606.9,2605.8,2.673548]
[1724338201213,2.4925,2606.9,2606.0,3.8372]
[1724338201376,2.4925,2606.9,2605.8,4.221288]
[1724338201377,3.83683,2606.4,2605.8,7.67504]
[1724338201583,3.83688,2606.3,2605.8,3.8375]
[1724338201905,10.16,2607.0,2605.3,0.23162]
[1724338201906,6.18223,2606.2,2605.3,0.23162]
[1724338202109,2.3451,2606.2,2605.8,3.83758]
[1724338202702,2.3451,2606.2,2605.9,3.8374]
[1724338202905,2.3451,2606.2,2605.8,3.8375]
[1724338203407,2.3098,2606.5,2606.0,3.83728]
[1724338203568,0.55,2606.4,2606.0,3.83728]
[1724338203969,0.55,2606.4,2606.0,3.83719]
[1724338204507,0.55,2606.4,2606.0,7.6744]
[1724338204708,0.55,2606.5,2606.0,3.83719]
[1724338204912,6.2428,2606.8,2606.0,0.76747]
[1724338205081,6.2428,2606.8,2605.7,2.3711]
[1724338205082,7.39,2606.9,2606.4,3.8367]
[1724338205285,6.60591,2607.0,2606.5,3.83654]
[1724338205286,3.83591,2607.0,2606.5,3.83654]
[1724338205969,2.4675,2607.1,2606.6,3.83633]
[1724338206209,2.4675,2607.1,2606.7,3.83616]
[1724338206585,2.4675,2607.1,2606.5,3.83655]
[1724338206586,3.8357,2607.1,2606.5,3.83645]
[1724338207096,3.83585,2607.0,2606.3,3.83677]
[1724338207413,3.83612,2606.8,2606.3,3.83677]
[1724338207733,2.2955,2606.9,2606.3,3.83674]
[1724338207939,2.2955,2606.9,2606.5,3.83652]
[1724338208095,2.2955,2606.9,2606.3,7.6735]
[1724338208431,2.2955,2606.9,2606.3,7.67348]
[1724338208734,2.2955,2606.9,2606.4,3.83659]
[1724338209318,2.2955,2606.9,2606.3,3.83674]
[1724338209520,2.2955,2606.9,2606.3,4.220414]
[1724338209702,2.2955,2606.9,2606.5,3.83655]
[1724338209921,6.1083,2607.2,2606.5,3.83655]
[1724338210089,4.43688541,2607.4,2606.8,7.67206]
[1724338210090,3.83529,2607.4,2606.8,7.67206]
[1724338210296,2.2762,2607.5,2606.8,3.83603]
[1724338210496,2.2762,2607.5,2607.0,3.8358]
[1724338210720,6.11139,2607.5,2606.8,3.83601]
[1724338210890,2.2762,2607.5,2606.8,3.83601]
[1724338211087,2.2762,2607.5,2607.0,3.8358]
[1724338211693,3.8347,2607.8,2607.0,3.83572]
[1724338211900,6.1109,2607.8,2607.1,3.83554]
[1724338212697,3.8348,2607.7,2607.1,3.83554]
[1724338212895,3.83443,2608.0,2607.4,3.83515]
[1724338213234,7.66891,2608.0,2607.4,3.83514]
[1724338213536,9.93471,2608.4,2607.8,3.83464]
[1724338213731,6.10081,2608.4,2607.8,3.83464]
[1724338213954,3.83416,2608.2,2607.6,3.83485]
[1724338214133,2.267,2608.4,2607.2,2.3566]
[1724338214134,6.10081,2608.4,2607.2,3.83541]
[1724338214433,7.66891,2608.0,2607.3,3.83535]
[1724338214823,3.83445,2608.0,2607.3,3.83535]
[1724338215225,3.83445,2608.0,2607.2,4.218951]
[1724338215226,0.55,2607.9,2607.5,3.83497]
[1724338215560,0.55,2608.1,2607.6,3.8349]
[1724338215722,4.38422,2608.1,2607.6,3.8349]
[1724338216111,0.55,2608.1,2607.6,7.66975]
[1724338216311,3.83393,2608.3,2607.7,3.83479]
[1724338216312,0.55,2608.2,2607.7,3.83479]
[1724338216647,0.55,2608.2,2607.6,7.6697]
[1724338216857,0.55,2608.2,2607.6,3.83485]
[1724338217010,3.8343,2608.1,2607.4,3.83512]
[1724338217217,0.55,2608.0,2607.4,7.67027]
[1724338217439,0.55,2608.0,2607.2,0.383541]
[1724338217440,3.8346,2607.9,2607.2,4.218951]
[1724338217635,6.2403,2607.9,2607.2,4.218951]
[1724338217844,0.55,2607.8,2607.3,3.83535]
[1724338218018,0.55,2607.8,2607.2,4.218951]
[1724338218221,0.55,2607.8,2606.8,3.83604]
[1724338218222,3.83513,2607.5,2606.8,3.83604]
[1724338218453,0.55,2607.4,2606.8,3.83604]
[1724338218672,0.55,2607.4,2607.0,3.83581]
[1724338218834,0.55,2607.6,2607.0,3.83581]
[1724338219624,0.55,2607.6,2605.2,5.307]
[1724338219625,3.83548,2607.3,2606.7,3.83615]
[1724338219862,4.38563,2607.2,2606.3,0.383674]
[1724338220164,4.38563,2607.2,2606.1,3.83706]
[1724338220165,3.83626,2606.8,2606.1,3.83706]
[1724338220364,0.55,2606.7,2606.2,4.220626]
[1724338220567,0.55,2606.7,2606.3,3.83682]
[1724338220766,0.55,2606.7,2606.4,3.83669]
[1724338220941,0.55,2606.8,2606.4,3.83669]
[1724338221129,0.55,2606.8,2606.2,4.220576]
[1724338221478,0.55,2606.8,2606.4,7.67322]
[1724338221635,0.55,2607.0,2606.4,3.8366]
[1724338222019,4.38584,2607.0,2606.4,7.67319]